{"text_format":"1","workbook":"xlsx","n_sheets":7,"sheets":["ABC","DEF","GHI","MNO","Abracadabra","Excel","Arknavne"],"not_rendered":{"charts":0,"images":0,"macros":0,"external_links":0,"defined_names":2,"comments":0,"pivot_tables":0},"unopened":[],"bounds":{"document_bytes":16777216,"sheet_cells":100000,"rows_first":2000,"rows_last":500,"rows_between":2000,"halvings":0,"cell_chars":16384,"cell_head_chars":4096},"cells_cut":0,"cells_raw":0,"read":"whole","date_system":"1900"}

{"sheet":"ABC","index":0,"n_rows":0,"n_cols":0,"rows_kept":0,"cut":false,"hidden":false,"merged":[]}

{"sheet":"DEF","index":1,"n_rows":0,"n_cols":0,"rows_kept":0,"cut":false,"hidden":false,"merged":[]}

{"sheet":"GHI","index":2,"n_rows":0,"n_cols":0,"rows_kept":0,"cut":false,"hidden":false,"merged":[]}

{"sheet":"MNO","index":3,"n_rows":10,"n_cols":3,"rows_kept":10,"cut":false,"hidden":false,"merged":[]}
[]
[]
[]
[null,null,{"$f":"Arknavne","v":"ABC"}]
[null,null,"DEF"]
[null,null,"GHI"]
[null,null,"MNO"]
[null,null,"Abracadabra"]
[null,null,"Excel"]
[null,null,"Arknavne"]

{"sheet":"Abracadabra","index":4,"n_rows":0,"n_cols":0,"rows_kept":0,"cut":false,"hidden":false,"merged":[]}

{"sheet":"Excel","index":5,"n_rows":0,"n_cols":0,"rows_kept":0,"cut":false,"hidden":false,"merged":[]}

{"sheet":"Arknavne","index":6,"n_rows":14,"n_cols":5,"rows_kept":14,"cut":false,"hidden":false,"merged":[]}
[]
[null,"Excel 365","Ældre versioner"]
[]
[null,{"$f":"Arknavne","v":"ABC"},{"$f":"shNames","v":"ABC"}]
[null,"DEF","DEF"]
[null,"GHI","GHI"]
[null,"MNO","MNO"]
[null,"Abracadabra","Abracadabra"]
[null,"Excel","Excel"]
[null,"Arknavne","Arknavne",null,"Hvis du indsætter et nyt ark skal du trykke F9 for"]
[null,null,null,null,"at få arknavnet vist."]
[null,null,null,null,"Filen skal gemmes som xlsm"]
[]
[null,null,null,null,"Formler: Se Name Manager."]